Cogmind - Beta 17 @@@ ROGUE MODE // 2026.07.10 @ 11:31:11 Player: IsAway Result: Destroyed by H-61 Shepherd with Heavy Assault Cannon Performance ------------- Evolutions (2) 1000 Regions Visited (3) 600 Robots Destroyed (25) 125 Value Destroyed (953) 953 Prototype IDs (1) 20 Alien Tech Used (0) 0 Bonus (-120) -120 TOTAL SCORE: 2578 Bonus ------- Friendly Fire -120 Cogmind --------- Core Integrity 0/550 Matter 279/300 Energy 45/100 System Corruption 0% Temperature Warm (153) Movement Rolling (100) Location -8/Materials Parts ------- > --- POWER (1) -------- (None) > --- PROPULSION (3) --- Armored Wheel Subdweller Monowheel > --- UTILITY (5) ------ Large Storage Unit Hacking Suite > --- WEAPON (2) ------- Particle Gun Subdweller Beam Cannon > --- INVENTORY (15) --- Light Nuclear Core Improved Heat Sink Coolant Injector Coolant Injector Large Storage Unit Medium Matter Pod (100) Hacking Suite Dynamic Insulation System Particle Gun Particle Gun Particle Gun Gauss Rifle Gauss Rifle Peak State ------------ > --- POWER ------------ Light Angular Momentum Engine > --- PROPULSION ------- Wheel Armored Wheel Subdweller Monowheel > --- UTILITY ---------- Coolant Injector Small Storage Unit Improved Terrain Scanner Hacking Suite Dynamic Insulation System > --- WEAPON ----------- Improved EM Shotgun Subdweller Beam Cannon > --- INVENTORY -------- Light Nuclear Core Improved Heat Sink Medium Matter Pod Hacking Suite Particle Gun Particle Gun Particle Gun Gauss Rifle [Rating: 32] Favorites ----------- Power Ion Engine Engine Ion Engine Power Core Light Nuclear Core Propulsion Wheel Wheel Wheel Utility Improved Medium Armor Plating Device Subdweller Optics Storage Small Storage Unit Hackware Hacking Suite Protection Improved Medium Armor Plating Weapon Gauss Rifle Energy Gun Improved EM Shotgun Energy Cannon Subdweller Beam Cannon Ballistic Gun Gauss Rifle Launcher Subdweller Shrapnel Launcher Special Weapon Mining Laser Build | -11 -10 -10 -8 ------- Run | Yrd Mat Sub Mat Slots Evolved 4 | . . . 4 Power . | . . . . Propulsion 1 | . . . 1 Utility 3 | . . . 3 Weapon . | . . . . Parts Attached 39 | 9 2 6 22 Power 4 | 2 . . 2 Engine 3 | 2 . . 1 Core 1 | . . . 1 Reactor . | . . . . Propulsion 9 | 2 1 3 3 Treads . | . . . . Leg . | . . . . Wheel 9 | 2 1 3 3 Hover . | . . . . Flight . | . . . . Utility 13 | 2 . 1 10 Device 5 | 1 . 1 3 Storage 2 | 1 . . 1 Processor . | . . . . Hackware 1 | . . . 1 Protection 5 | . . . 5 Artifact . | . . . . Weapon 13 | 3 1 2 7 Energy Gun 5 | 1 . . 4 Energy Cannon 1 | . . 1 . Ballistic Gun 5 | 2 . . 3 Ballistic Cannon . | . . . . Launcher 1 | . . 1 . Special Weapon 1 | . 1 . . Impact Weapon . | . . . . Slashing Weapon . | . . . . Piercing Weapon . | . . . . Special Melee Weapon . | . . . . Unidentified Prototypes 1 | . . . 1 Parts Lost 22 | . . 5 17 Power 4 | . . 1 3 Propulsion 5 | . . 2 3 Utility 8 | . . 1 7 Weapon 5 | . . 1 4 Highest Loss Streak 6 | . . 5 6 To Critical Strikes 2 | . . 1 1 Average Backups 7 | 2 7 6 8 Power . | . 1 . . Propulsion . | . 2 1 . Utility 2 | . 1 2 3 Weapon 3 | . 2 1 3 Tool/Special . | . . . . Unused Backups 12 | . . 1 11 Power 1 | . . . 1 Propulsion . | . . . . Utility 6 | . . . 6 Weapon 5 | . . 1 4 Tool/Special . | . . . . Average Slot Usage (%) 89 | . 100 90 87 Engine 8 | . 14 11 6 Wheel 23 | . 28 24 22 Device 12 | . 14 11 12 Storage 10 | . 14 14 9 Hackware 2 | . . . 4 Protection 8 | . . . 13 Energy Gun 2 | . . . 4 Energy Cannon 4 | . . 6 4 Ballistic Gun 10 | . 14 14 8 Special Weapon 4 | . 13 6 1 Peak Build Rating 32 | 7 8 10 32 Average Rating 19 | 5 7 7 26 On Entrance 6 | . 7 8 9 Avg Prop Armor Cover (%) 1 | . . . 1 Naked Turns . | . . . . Heaviest Build 47 | 14 13 20 47 Greatest Support 42 | 26 20 30 42 Greatest Overweight (x) 4 | 1 . 4 2 Average Overweight (x) . | . . . . Largest Inventory Capacity 15 | 8 8 8 15 Average Capacity 8 | 7 8 8 9 Most Carried 15 | 7 8 8 15 Average Carried 7 | 2 7 6 8 Final Capacity 15 | 8 8 8 15 Final Carried 13 | 7 8 5 13 Class Distribution -------------------- 54% | Scavenger-Mutant 45% | Mutant Dominant Class ---------------- Mutant | -10/Materials Mutant | -10/Subcaves Scavenger-Mutant | -8/Materials Resources | -11 -10 -10 -8 ----------- Run | Yrd Mat Sub Mat Matter Collected 1191 | 322 . 85 784 Remotely . | . . . . Salvage Created 1213 | 134 . 63 1016 Parts 60 | 9 . 4 47 Haulers Intercepted . | . . . . Recyclers Shooed 2 | . . . 2 Parts Field Recycled . | . . . . Retrieved Matter . | . . . . Parts Self-Destructed . | . . . . Prevented . | . . . . Parts Restored . | . . . . Kills | -11 -10 -10 -8 ------- Run | Yrd Mat Sub Mat Combat Hostiles Destroyed 18 | . . 3 15 Guns 14 | . . . 14 Cannons 2 | . . 2 . AOE 2 | . . 1 1 Classes Destroyed 10 | 2 . 2 6 Tunneler 2 | 2 . . . Recycler 3 | 1 . . 2 Operator 1 | . . . 1 Watcher 1 | . . . 1 Grunt 12 | . . . 12 Sentry 1 | . . . 1 Specialist 1 | . . . 1 Heavy 1 | . . . 1 Subdweller 3 | . . 3 . Scientist 1 | . . 1 . Best Kill Streak 6 | 2 . 3 6 Combat Bots Only 6 | . . 3 6 Max Kills in Single Turn 2 | 1 . 2 1 Gunslinging . | . . . . Exploded 1 | . . 1 1 Melee . | . . . . Uniques/NPCs Destroyed . | . . . . Combat | -11 -10 -10 -8 -------- Run | Yrd Mat Sub Mat Hostile Shots Fired 259 | . . 20 239 Missed 86 | . . 3 83 Hits 173 | . . 17 156 Melee 1 | . . . 1 Projectile 172 | . . 17 155 AOE 1 | . . . 1 Critical Strikes 10 | . . 1 9 Damage Taken 3357 | . . 486 2871 Core 657 | . . 77 580 Absorbed by Shields . | . . . . Regen/Repaired (Parts) 101 | . . . 101 Core Remaining (%) 84 | 100 . 69 . Volleys Fired 126 | 8 13 11 94 Largest 2 | 2 1 2 2 Hottest 145 | 40 100 100 145 Shots Fired 215 | 16 13 18 168 Gun 161 | 16 . 10 135 Cannon 27 | . . 3 24 Launcher 4 | . . 4 . Special 23 | . 13 1 9 Kinetic 130 | 16 . 14 100 Thermal 69 | . 13 4 52 Explosive . | . . . . Electromagnetic 16 | . . . 16 Robot Hit Streak 14 | 6 . 6 14 Robot Miss Streak 5 | 2 . 1 5 Penetration Max 1 | . . . 1 Secondary Targets 3 | . . . 3 Max Gunslinging Chain 1 | . . . 1 Shots Hit Robots 116 | 9 . 13 94 Core Hits 53 | 4 . 9 40 Critical Kills 1 | . . . 1 Critical Parts Destroyed 1 | . . . 1 Critical Strikes 2 | . . . 2 Destroy 2 | . . . 2 Melee Attacks . | . . . . Impact . | . . . . Slashing . | . . . . Piercing . | . . . . Sneak Attacks . | . . . . Combat Hostiles . | . . . . Follow-up Attacks . | . . . . Damage Inflicted 2830 | 92 . 534 2204 Guns 2016 | 92 . 54 1870 Cannons 337 | . . 86 251 Explosions 477 | . . 394 83 Melee . | . . . . Ramming . | . . . . Kinetic 1957 | 92 . 448 1417 Thermal 672 | . . 86 586 Explosive . | . . . . Electromagnetic 201 | . . . 201 Impact . | . . . . Slashing . | . . . . Piercing . | . . . . Highest Corruption . | . . . . Average Corruption . | . . . . Corruption Purged . | . . . . Corruption Blocked . | . . . . Overload Shots . | . . . . Overflow Damage 43 | . . 30 13 Projectiles 10 | . . . 10 Explosions 33 | . . 30 3 Melee . | . . . . Knockbacks . | . . . . Impact . | . . . . Kinetic . | . . . . Secondary . | . . . . Self-Inflicted Damage 147 | . . 136 11 Shots 5 | . . 4 1 Rammed . | . . . . Targets Rammed . | . . . . Kicked . | . . . . Crushed . | . . . . Highest Temperature 341 | . 100 32 341 Average Temperature 63 | . 34 16 70 Received Heat Transfer 1047 | . . 48 999 Effects 3 | . . . 3 Interference 2 | . . . 2 Short Circuit 1 | . . . 1 Siege Activations . | . . . . Martial Activations . | . . . . Shielding Activations . | . . . . Robots Disrupted . | . . . . Combat Hostiles . | . . . . Robots Corrupted . | . . . . Combat Hostiles . | . . . . Parts Fried 1 | . . . 1 Impact Corruptions . | . . . . Robots Melted . | . . . . Combat Hostiles . | . . . . Parts Melted 3 | . . 2 1 Heat Transferred 1136 | . . 111 1025 Parts Sabotaged . | . . . . Parts Stolen . | . . . . Parts Stripped . | . . . . Power Chain Reactions 2 | . . . 2 Alert | -11 -10 -10 -8 ------- Run | Yrd Mat Sub Mat Maximum Alert Level . | . . . . Low Security (%) 100 | 100 100 . 100 Level 1 . | . . . . Level 2 . | . . . . Level 3 . | . . . . Level 4 . | . . . . Level 5 . | . . . . High Security . | . . . . Max Security . | . . . . Peak Influence 135 | 10 4 . 135 Initial 3 | . 3 . . Average 27 | 2 1 . 35 Influence Increases 576 | 15 9 . 552 Destroy 0b10 Robot/C 300 | . . . 300 Destroy 0b10 Robot/NC 35 | 15 . . 20 Destroy Leader 72 | . . . 72 Successful Hack 50 | . . . 50 Disable Machine 45 | . . . 45 Destroy Structure 44 | . 9 . 35 Lose Combat Pursuer 30 | . . . 30 Influence Decreases 540 | 10 13 1 516 Entered New Map 3 | . 2 1 . Time Decay 275 | 10 11 . 254 Lost Part 135 | . . . 135 Purge Threat 127 | . . . 127 Squads Dispatched 6 | . 1 . 5 Investigation 2 | . 1 . 1 Extermination . | . . . . Reinforcement 4 | . . . 4 Assault . | . . . . Garrison . | . . . . Intercept . | . . . . Searches Triggered . | . . . . Construction Impeded 1 | . . . 1 Haulers Reinforced . | . . . . Active Scanning Responses . | . . . . Cargo Convoy Interrupts . | . . . . Stealth | -11 -10 -10 -8 --------- Run | Yrd Mat Sub Mat Distress Signals 2 | . . . 2 Communications Jammed . | . . . . Distress Signals . | . . . . Times Spotted 31 | . . 3 28 Peak Tracking Total 7 | . . 2 7 Tactical Retreats 2 | . . . 2 Traps | -11 -10 -10 -8 ------- Run | Yrd Mat Sub Mat Traps Triggered . | . . . . Indirectly . | . . . . Trap Hack Attempts . | . . . . Triggered . | . . . . Disarmed . | . . . . Reprogrammed . | . . . . Reused . | . . . . Traps Extracted . | . . . . Installed . | . . . . Triggered . | . . . . Machines | -11 -10 -10 -8 ---------- Run | Yrd Mat Sub Mat Machines Disabled 3 | . . . 3 Max in Single Turn 1 | . . . 1 Machines Repaired . | . . . . Machines Dismantled . | . . . . Machines Sabotaged . | . . . . Overloaded Fab Kills . | . . . . Hacking | -11 -10 -10 -8 --------- Run | Yrd Mat Sub Mat Machines Accessed 7 | . 3 . 4 Terminals 4 | . 2 . 2 Fabricators . | . . . . Repair Stations 1 | . . . 1 Recycling Units 1 | . 1 . . Scanalyzers 1 | . . . 1 Garrison Access . | . . . . Total Hacks 23 | . 9 . 14 Successful 11 | . . . 11 Failed 12 | . 9 . 3 Catastrophic 2 | . 2 . . Database Lockouts . | . . . . Manual 5 | . 5 . . Terminals 14 | . 8 . 6 Fabricators . | . . . . Repair Stations 5 | . . . 5 Recycling Units 1 | . 1 . . Scanalyzers 3 | . . . 3 Garrison Access . | . . . . Terminal Hacks 4 | . . . 4 Robot Analysis 2 | . . . 2 Unreport Threat 1 | . . . 1 Recall Investigation 1 | . . . 1 Fabricator Hacks . | . . . . Repair Station Hacks 4 | . . . 4 Scan Component 2 | . . . 2 Repair 2 | . . . 2 Recycling Unit Hacks . | . . . . Scanalyzer 3 | . . . 3 Retrieve Study 3 | . . . 3 Garrison Access Hacks . | . . . . Unauthorized Hacks . | . . . . Terminals . | . . . . Fabricators . | . . . . Repair Stations . | . . . . Recycling Units . | . . . . Scanalyzers . | . . . . Garrison Access . | . . . . Data Cores Recovered 1 | . . . 1 Used 1 | . . . 1 Hacking Detections 7 | . 3 . 4 Full Trace Events 2 | . 1 . 1 Feedback Events . | . . . . Feedback Blocked . | . . . . Robot Schematics Acquired . | . . . . Robots Built . | . . . . Authchips . | . . . . Time . | . . . . Total Robot Build Rating . | . . . . Part Schematics Acquired . | . . . . Parts Built . | . . . . Authchips . | . . . . Time . | . . . . Total Part Build Rating . | . . . . Part Studies Acquired 2 | . . . 2 Parts Repaired 2 | . . . 2 Time 38 | . . . 38 Parts Recycled . | . . . . Recycled Matter . | . . . . Retrieved Matter . | . . . . Retrieved Components . | . . . . Parts Scanalyzed . | . . . . Part Schematics Acquired . | . . . . Parts Damaged . | . . . . Bothacking | -11 -10 -10 -8 ------------ Run | Yrd Mat Sub Mat Used RIF Installer . | . . . . Robots Hacked . | . . . . Non-combat . | . . . . Combat . | . . . . Robot Hacks Applied . | . . . . Relay Couplers Released . | . . . . Fabnet Peak Effective % . | . . . . Robots Rewired . | . . . . Allies Hacked . | . . . . Hacks Repelled . | . . . . Allies | -11 -10 -10 -8 -------- Run | Yrd Mat Sub Mat Total Allies . | . . . . Largest Group . | . . . . Highest-Rated Group . | . . . . Highest-Rated Ally . | . . . . Total Orders . | . . . . Ally Attacks . | . . . . Total Damage . | . . . . Kills . | . . . . Allies Corrupted . | . . . . Allies Melted . | . . . . Intel | -11 -10 -10 -8 ------- Run | Yrd Mat Sub Mat Active Infowar (turns) 1017 | 45 151 213 608 Optics 341 | . . 76 265 Terrain 343 | . . . 343 Seismic 333 | 45 151 137 . Robot Analysis Total 2 | . . . 2 Derelict Logs Recovered 1 | . . 1 . Drone Launches . | . . . . Drone Recoveries . | . . . . Exploration | -11 -10 -10 -8 ------------- Run | Yrd Mat Sub Mat Turns Passed 1323 | 98 151 262 812 Spaces Moved 766 | 64 117 175 410 Core 16 | 8 . 8 . Treads . | . . . . Legs . | . . . . Wheels 750 | 56 117 167 410 Hover . | . . . . Flight . | . . . . Fastest Speed 50 | 50 80 80 80 Average Speed 94 | 86 80 92 101 Slowest Speed 250 | 100 80 250 120 Overloaded Moves . | . . . . Propulsion Burnouts . | . . . . Robots Hopped . | . . . . Potential Cave-ins . | . . . . Cave-ins Triggered . | . . . . Exploration Rate (%) 18 | 3 22 19 29 Regions Visited 3 Branch Regions 1 Pre-discovered Areas 1 | . . 1 . Known Exits Taken . | . . . . Unknown Exits Taken 3 | 1 1 1 . Scrap Searched 1 | . . 1 . Spaces Dug 22 | . 13 . 9 Terrain Destroyed 83 | . 13 36 34 Melee . | . . . . Projectile 35 | . 13 . 22 AOE 48 | . . 36 12 Terrain Rammed . | . . . . Walls Destroyed . | . . . . Machines Disabled . | . . . . Actions | -11 -10 -10 -8 --------- Run | Yrd Mat Sub Mat Total 1096 | 88 134 255 619 Wait 107 | 2 . 55 50 Move 763 | 63 116 174 410 Hop . | . . . . Pick Up 32 | 5 2 4 21 Fast Attach 20 | 8 . 1 11 Attach 15 | . . 4 11 Detach 5 | 1 . . 4 Swap 15 | 1 2 3 9 Drop 13 | . 1 3 9 Fire 126 | 8 13 11 94 Melee . | . . . . Ram . | . . . . Kick . | . . . . Crush . | . . . . Escape Stasis . | . . . . Rewire . | . . . . Trap . | . . . . Miscellaneous . | . . . . Route ------- -11/Scrapyard -10/Materials (discovered 2 exits: [*Min] / [*Sub]) -10/Subcaves -8/Materials (discovered 1 exit: [*Fac]) History --------- Turn | Location | Event 2 | -11/Scrapyard | Met Revision 17 11 | -11/Scrapyard | Discovered new exit (range 16) 99 | -11/Scrapyard | Entered Materials 159 | -10/Materials | Discovered new exit (range 14) 245 | -10/Materials | Discovered new exit (range 3) 250 | -10/Materials | Entered Subcaves 250 | -10/Subcaves | Learned location of Storage (-9) 251 | -10/Subcaves | Approached by a straggling Scientist 317 | -10/Subcaves | Build established: Mutant 386 | -10/Subcaves | Ambushed by Subdweller buried in earth 428 | -10/Subcaves | Lost 5 parts (1p2n1u1w) 498 | -10/Subcaves | Discovered new exit (range 19) 511 | -10/Subcaves | A swath of the cavern ceiling suddenly collapsed 512 | -10/Subcaves | Entered Materials 512 | -8/Materials | Evolved 4 slots: Propulsion x1, Utility x3 660 | -8/Materials | Repaired Broken Sub. Monowheel 677 | -8/Materials | Repaired Sub. Beam Cannon 815 | -8/Materials | Build established: Scavenger-Mutant 1000 | -8/Materials | Core integrity fell below 50% 1047 | -8/Materials | Lost 6 parts (1p2n1u2w) 1302 | -8/Materials | Discovered new exit (range 13) 1313 | -8/Materials | Core integrity fell below 20% 1324 | -8/Materials | Destroyed by H-61 Shepherd with Heavy Assault Cannon Last Messages --------------- Critical hit (Destroy). Imp. EM Shotgun destroyed. Knocked back. Acquired 2 matter. H-61 Shepherd calls for reinforcements. ALERT: Hostile activity reported, dispatching reinforcements to area. Knocked back. Slug penetrates Wall. Lgt. Angular Momentum Engine destroyed. Penetrated by Slug. X-57 Shotgunner destroyed. U-05 Engineer builds a Wall. Recycling Unit disabled. Structural Scanner tumbles out of recycling unit. Imp. Medium Armor Plating destroyed. Penetrated by Slug. Knocked back. Neutrino Reactor explodes. K-01 Serf collects debris. Map ----- +----------------------------------------------------+ | ?????????????????????????????????????????????????? | | ?????????????????????????????????????????????????? | | ?????????????????????????????????????????????????? | | ?????????????????????????????????????????????????? | | ?????????????????????????????????????????????????? | | ?????????????????????????????????????????????????? | | ?????????????????????????????????????????????????? | | ?????????????????????????????????????????????????? | | ?????????????????????????????????????????????????? | | ?????????????????????????????????????????????????? | | ?????????????????????????????????????????????????? | | ?????????????????????????????????????????????????? | | ?????????????????????????????????????????????????? | | ???????????????????????????????#?????????????????? | | ???????#???????? ??????????????????#???????????? | | ???????????????# #?????????????????????????????? | | ????????? ?????# #?????????????????????????????? | | ???????????????+ ##########????????????????????? | | ???????????????# # #??????#?????????????? | | ??????????? ???# # "" """#????##??????????????? | | ????????#??##### ; "Y! """#???????????########## | | ????#??????# # """#???????????# | | ???????????#